bitfinex/quotes_SOLUSD_20250126
["timestamp","ask_amount","ask_price","bid_price","bid_amount"]
[1737920202473,23.776884,256.59,256.47,235.35284062]
[1737920202667,23.776884,256.59,256.47,234.963]
[1737920203169,3.8974,256.58,256.48,3.8989]
[1737920203369,5.28283275,256.6,256.49,0.38979185]
[1737920203571,5.31283275,256.6,256.49,0.38979185]
[1737920205371,9.20993275,256.6,256.5,3.8986]
[1737920205551,23.776884,256.59,256.5,214.963]
[1737920205748,23.776884,256.59,256.5,80.263]
[1737920205972,5.28283275,256.56,256.5,80.263]
[1737920207289,3.8978,256.55,256.5,80.263]
[1737920215490,3.9278,256.55,256.5,80.263]
[1737920215798,3.8981,256.53,256.45,80.263]
[1737920215987,5.28283275,256.52,256.45,80.263]
[1737920217994,3.8984,256.51,256.45,80.263]
[1737920220194,29.05971675,256.54,256.45,80.263]
[1737920220398,3.8981,256.53,256.45,80.263]
[1737920226494,5.28283275,256.54,256.45,84.55217146]
[1737920226697,0.03,256.55,256.45,84.1623]
[1737920226885,0.03,256.55,256.46,0.38981301]
[1737920227795,3.9278,256.55,256.46,0.38981301]
[1737920228002,0.03,256.53,256.46,0.38981301]
[1737920228875,0.03,256.53,256.46,4.28901301]
[1737920229188,0.03,256.53,256.46,3.8992]
[1737920230613,0.03,256.53,256.45,80.263]
[1737920233509,0.03,256.53,256.45,84.1623]
[1737920233809,0.03,256.53,256.46,0.38986576]
[1737920235124,0.03,256.53,256.47,3.899]
[1737920238222,0.03,256.53,256.47,84.162]
[1737920241332,0.03,256.53,256.47,80.263]
[1737920243808,5.31283275,256.53,256.47,80.263]
[1737920244021,5.28283275,256.51,256.47,80.263]
[1737920244223,5.28283275,256.49,256.47,80.263]
[1737920244897,5.28283275,256.49,256.44,0.063]
[1737920245911,3.8989,256.48,256.44,0.063]
[1737920249307,29.05971675,256.47,256.44,0.063]
[1737920249719,5.28283275,256.45,256.44,0.063]
[1737920249917,29.05971675,256.45,256.44,0.063]
[1737920251407,32.95901675,256.45,256.44,0.063]
[1737920253507,3.8996,256.43,256.39,79.326]
[1737920256111,3.8995,256.44,256.39,79.326]
[1737920261336,27.676384,256.44,256.39,79.326]
[1737920266542,3.8998,256.42,256.38,0.063]
[1737920268848,29.05971675,256.41,256.38,0.063]
[1737920270056,23.776884,256.39,256.38,0.063]
[1737920272854,5.28283275,256.41,256.38,0.063]
[1737920273037,3.9001,256.4,256.38,0.063]
[1737920276555,23.776884,256.39,256.38,0.063]
[1737920279561,1.6622,256.44,256.38,0.063]
[1737920279562,5.28283275,256.43,256.38,0.063]
[1737920280767,23.776884,256.42,256.38,0.063]
[1737920281961,27.676684,256.42,256.38,0.063]
[1737920282141,23.776884,256.4,256.38,0.063]
[1737920285161,0.03,256.44,256.38,0.063]
[1737920285761,0.03,256.44,256.38,79.389]
[1737920285968,23.806884,256.44,256.38,79.389]
[1737920286348,27.706384,256.44,256.38,79.389]
[1737920291547,23.776884,256.42,256.38,79.389]
[1737920293770,3.9,256.41,256.38,79.389]
[1737920298570,23.776884,256.4,256.38,79.389]
[1737920299070,29.05971675,256.39,256.38,0.063]
[1737920299262,32.96001675,256.39,256.38,0.063]
[1737920304076,3.9003,256.39,256.38,0.063]
[1737920306377,9.18313275,256.39,256.38,0.063]
[1737920325597,9.21313275,256.39,256.38,0.063]
[1737920327110,0.03,256.39,256.38,0.063]
[1737920327308,0.03,256.39,256.38,79.389]
[1737920328412,0.03,256.39,256.38,79.7789944]
[1737920331690,0.03,256.39,256.38,79.389]
[1737920333304,0.03,256.39,256.38,79.77897]
[1737920336804,0.03,256.39,256.38,214.47897]
[1737920337003,0.03,256.42,256.41,20.0]
[1737920337207,0.03,256.53,256.41,234.41582706]
[1737920337385,0.03,256.53,256.5,20.0]
[1737920337589,0.03,256.53,256.51,0.38973813]
[1737920337788,0.03,256.53,256.5,234.026]
[1737920338101,0.03,256.53,256.5,214.026]
[1737920339685,0.03,256.53,256.51,0.38978065]
[1737920340083,0.03,256.53,256.51,214.41578065]
[1737920340287,0.03,256.53,256.51,214.026]
[1737920340489,0.03,256.53,256.52,0.38968233]
[1737920342186,0.03,256.53,256.52,218.31398233]
[1737920342392,0.03,256.53,256.52,217.9243]
[1737920342592,0.03,256.53,256.52,218.9243]
[1737920349106,0.03,256.53,256.52,217.9243]
[1737920350202,0.03,256.6,256.54,22.0]
[1737920350420,0.03,256.6,256.58,20.0]
[1737920350622,0.03,256.6,256.59,0.38962594]
[1737920350927,0.03,256.6,256.59,4.28682594]
[1737920352018,0.03,256.6,256.59,218.31282594]
[1737920352207,0.03,256.6,256.59,217.9232]
[1737920352735,0.03,256.6,256.59,218.9232]
[1737920353529,0.03,256.6,256.59,217.9232]
[1737920354835,0.03,256.6,256.59,214.026]
[1737920362728,0.03,256.6,256.59,217.9232]
[1737920379765,0.03,256.62,256.6,24.776884]
[1737920380062,58.44502371,256.63,256.62,45.776884]
[1737920380364,38.45232371,256.63,256.62,45.776884]
[1737920380666,18.85842371,256.63,256.62,45.776884]
[1737920381058,18.85842371,256.63,256.62,49.673684]
[1737920383255,0.03,256.65,256.64,21.0]
[1737920383565,0.03,256.65,256.64,234.41546538]
[1737920383864,0.03,256.65,256.64,235.026]
[1737920385369,0.03,256.65,256.64,238.9225]
[1737920389371,0.03,256.65,256.64,237.9225]
[1737920389669,1.6896,256.65,256.6,1.58295009]
[1737920389850,2.6596,256.6,256.55,0.063]
[1737920390049,5.28283275,256.58,256.55,0.063]
[1737920391171,3.8975,256.57,256.55,0.063]
[1737920391545,5.5568,256.6,256.55,0.063]
[1737920391858,10.83963275,256.6,256.55,0.063]
[1737920393075,5.28283275,256.58,256.55,0.063]
[1737920399577,1.0,256.44,256.38,0.063]
[1737920399873,23.776884,256.45,256.38,0.063]
[1737920399874,5.28283275,256.39,256.38,0.063]
[1737920402276,5.67263284,256.39,256.38,0.063]
[1737920403390,5.28283275,256.39,256.38,0.063]
[1737920405674,51.19104775,256.39,256.38,0.063]
[1737920405869,20.0,256.36,256.29,0.063]
[1737920406075,5.28283275,256.3,256.29,79.389]
[1737920420692,5.28283275,256.32,256.29,79.389]
[1737920421000,5.28283275,256.3,256.29,79.389]
[1737920424601,9.18413275,256.32,256.29,79.389]
[1737920430685,5.28283275,256.3,256.29,79.389]
[1737920432211,5.28283275,256.3,256.29,0.063]
[1737920432504,9.18443275,256.3,256.29,0.063]
[1737920442406,9.18443275,256.3,256.26,0.063]
[1737920442607,5.28283275,256.27,256.26,0.063]
[1737920445214,9.18493275,256.27,256.26,0.063]
[1737920446692,5.28283275,256.27,256.26,0.063]
[1737920467312,5.31283275,256.29,256.26,0.063]
[1737920467513,0.03,256.29,256.26,79.389]
[1737920473832,5.28283275,256.27,256.26,79.389]
[1737920485648,5.31283275,256.29,256.26,79.389]
[1737920487347,0.03,256.29,256.26,79.389]
[1737920490657,5.31283275,256.29,256.26,79.389]
[1737920493336,9.21463275,256.29,256.26,79.389]
[1737920498364,5.31283275,256.29,256.26,79.389]
[1737920503798,0.03,256.29,256.26,79.389]
[1737920512566,0.03,256.29,256.26,226.0278]
[1737920512768,0.03,256.29,256.26,222.1256]
[1737920515380,0.03,256.29,256.26,226.0278]
[1737920521097,0.03,256.29,256.26,222.1256]
[1737920523197,0.03,256.29,256.26,87.4256]
[1737920526182,0.03,256.29,256.26,80.9809]
[1737920532109,5.28283275,256.27,256.26,79.389]
[1737920533505,5.28283275,256.27,256.26,0.063]
[1737920545715,3.902,256.28,256.26,0.063]
[1737920552714,0.03,256.29,256.26,0.063]
[1737920553018,3.9319,256.29,256.26,0.063]
[1737920553394,9.21473275,256.29,256.26,0.063]
[1737920563922,5.31283275,256.29,256.26,0.063]
[1737920564131,0.03,256.29,256.26,0.063]
[1737920570030,5.31283275,256.29,256.26,0.063]
[1737920571837,9.21473275,256.29,256.26,0.063]
[1737920587049,5.28283275,256.27,256.26,0.063]
[1737920588954,9.18493275,256.27,256.26,0.063]
[1737920593438,5.28283275,256.27,256.26,0.063]
[1737920593641,3.9019,256.28,256.26,0.063]
[1737920594768,0.03,256.29,256.26,0.063]
[1737920594953,3.9318,256.29,256.26,0.063]
[1737920595561,5.28283275,256.28,256.26,0.063]
[1737920596967,3.9021,256.27,256.26,0.063]
[1737920619098,23.776884,256.26,256.25,3.945915]
[1737920619301,29.44951684,256.26,256.25,3.945915]
[1737920620203,33.35171684,256.26,256.25,3.945915]
[1737920628689,33.35171684,256.26,256.25,1.5e-05]
[1737920628889,20.0,256.19,256.18,0.063]
[1737920629110,25.67263284,256.19,256.18,0.063]
[1737920630712,29.57593284,256.19,256.18,0.063]
[1737920637698,20.0,256.15,256.12,0.063]
[1737920637897,5.28283275,256.13,256.12,0.063]
[1737920638306,29.05971675,256.13,256.12,0.063]
[1737920639501,20.0,256.1,256.0,4.689]
[1737920639701,9.18793275,256.08,256.0,4.689]
[1737920641196,5.28283275,256.1,256.0,4.689]
[1737920641401,5.28283275,256.15,256.0,222.6211]
[1737920641601,5.28283275,256.15,256.01,7.7922]
[1737920643001,5.28283275,256.17,256.01,7.7922]
[1737920643201,5.28283275,256.17,256.01,221.8182]
[1737920643511,11.76623275,256.19,256.05,21.5328]
[1737920643824,5.28283275,256.19,256.06,6.2594]
[1737920645221,5.31283275,256.19,256.06,6.2594]
[1737920645427,0.03,256.19,256.07,3.9051]
[1737920645628,0.03,256.19,256.07,217.9311]
[1737920647726,0.03,256.19,256.11,3.9045]
[1737920649028,0.03,256.19,256.12,5.4548]
[1737920650525,0.03,256.19,256.12,84.7808]
[1737920653939,0.03,256.19,256.12,219.4808]
[1737920654921,5.31283275,256.19,256.12,215.5766]
[1737920655833,0.03,256.19,256.12,215.5766]
[1737920656524,0.03,256.19,256.12,215.0766]
[1737920659652,5.31283275,256.19,256.12,215.0766]
[1737920659825,5.28283275,256.17,256.12,215.0766]
[1737920660029,5.28283275,256.17,256.12,80.3766]
[1737920661044,9.18653275,256.17,256.12,80.3766]
[1737920663947,3.9035,256.18,256.12,80.3766]
[1737920664127,5.31283275,256.19,256.12,80.3766]
[1737920664951,9.21623275,256.19,256.12,80.3766]
[1737920668258,9.21623275,256.19,256.12,80.4396]
[1737920675039,3.9334,256.19,256.12,80.4396]
[1737920676143,0.03,256.19,256.12,80.4396]
[1737920676862,0.03,256.19,256.12,84.3439]
[1737920680079,0.03,256.19,256.12,80.4396]
[1737920680372,0.03,256.19,256.12,84.3439]
[1737920683666,0.03,256.19,256.12,219.0439]
[1737920695571,0.03,256.19,256.12,84.3439]
[1737920699782,0.03,256.19,256.12,219.0439]
[1737920699987,0.03,256.19,256.13,6.0199]
[1737920700173,0.03,256.19,256.16,20.0]
[1737920701468,0.03,256.19,256.17,3.9036]
[1737920702071,0.03,256.19,256.18,1.536]
[1737920704490,0.03,256.19,256.18,80.862]
[1737920705890,0.03,256.19,256.18,79.326]
[1737920706094,5.31283275,256.19,256.13,79.326]
[1737920706295,5.28283275,256.15,256.13,79.326]
[1737920706875,5.28283275,256.17,256.13,79.326]
[1737920712500,5.31283275,256.19,256.13,79.326]
[1737920714017,9.21613275,256.19,256.13,79.326]
[1737920716318,0.03,256.19,256.13,79.326]
[1737920718020,0.03,256.19,256.14,3.9041]
[1737920718520,0.03,256.19,256.13,79.326]
[1737920722122,5.28283275,256.18,256.13,79.326]
[1737920722312,5.28283275,256.18,256.12,0.063]
[1737920723134,3.9036,256.17,256.12,0.063]
[1737920723499,5.28283275,256.14,256.12,0.063]
[1737920724934,3.9042,256.13,256.12,0.063]
[1737920727209,5.28283275,256.14,256.12,0.063]
[1737920727416,3.904,256.15,256.12,0.063]
[1737920730719,25.28283275,256.18,256.12,0.063]
[1737920731033,20.0,256.18,256.12,0.063]
[1737920731214,3.9333,256.19,256.12,0.063]
[1737920731407,0.03,256.19,256.12,79.389]
[1737920731611,0.03,256.19,256.12,83.2933]
[1737920732730,0.03,256.19,256.12,79.389]
[1737920734918,9.21613275,256.19,256.12,79.389]
[1737920741343,5.28283275,256.17,256.12,79.389]
[1737920742129,5.28283275,256.15,256.12,79.389]
[1737920742336,5.28283275,256.13,256.12,79.389]
[1737920742537,5.28283275,256.13,256.12,0.063]
[1737920743042,9.18703275,256.13,256.12,0.063]
[1737920743716,32.96391675,256.13,256.12,0.063]
[1737920744331,5.28283275,256.07,256.0,84.015]
[1737920745050,5.28283275,256.07,256.0,4.689]
[1737920745343,3.9053,256.06,256.0,4.689]
[1737920750051,5.28283275,256.07,256.0,4.689]
[1737920750246,3.9051,256.08,256.0,4.689]
[1737920750549,3.9051,256.08,256.0,8.5952]
[1737920750945,3.9051,256.08,256.0,8.4988033]
[1737920754050,3.9051,256.08,256.0,4.5926033]
[1737920756047,5.28283275,256.09,256.0,8.4987033]
[1737920756351,6.4648,256.1,256.0,8.4987033]
[1737920759047,3.9048,256.1,256.0,8.4987033]
[1737920760252,5.28283275,256.11,256.0,87.8247033]
[1737920760451,5.28283275,256.13,256.0,87.8247033]
[1737920760650,5.28283275,256.13,256.0,222.5247033]
[1737920761533,9.18703275,256.13,256.0,222.5247033]
[1737920761734,0.03,256.12,256.0,222.5247033]
[1737920763644,5.28283275,256.11,256.0,222.5247033]
[1737920767160,9.18733275,256.11,256.0,222.5247033]
[1737920769857,0.03,256.12,256.04,6.117]
[1737920770065,0.03,256.12,256.05,1.6412]
[1737920771234,0.03,256.12,256.05,215.6672]
[1737920772040,0.03,256.12,256.06,3.9053]
[1737920772341,0.03,256.12,256.06,217.9313]
[1737920778842,0.03,256.12,256.09,20.0]
[1737920781153,0.03,256.12,256.09,23.9047]
[1737920784668,0.03,256.12,256.09,103.2307]
[1737920786069,0.03,256.12,256.09,99.326]
[1737920791946,0.03,256.12,256.09,103.2307]
[1737920803876,0.03,256.12,256.09,79.326]
[1737920804269,5.28283275,256.11,256.09,79.326]
[1737920805461,9.18753275,256.11,256.09,79.326]
[1737920806676,9.18753275,256.11,256.01,83.2319]
[1737920806886,5.28283275,256.07,256.01,79.326]
[1737920807069,5.28283275,256.05,256.0,4.5926033]
[1737920807262,5.28283275,256.01,256.0,4.5926033]
[1737920808561,9.18883275,256.01,256.0,4.5926033]
[1737920818715,20.0,255.98,255.86,0.063]
[1737920818876,5.28283275,255.89,255.86,0.063]
[1737920819081,5.28283275,255.87,255.86,0.063]
[1737920821405,9.19083275,255.89,255.86,0.063]
[1737920822198,5.28283275,255.89,255.86,0.063]
[1737920822403,5.28283275,255.91,255.86,0.063]
[1737920822705,5.28283275,255.9,255.86,0.063]
[1737920829493,3.9074,255.92,255.86,0.063]
[1737920829494,5.28283275,255.89,255.86,0.063]
[1737920833612,5.28283275,255.97,255.86,83.2973]
[1737920833992,5.28283275,255.97,255.86,217.9973]
[1737920834298,3.9064,255.99,255.86,217.9973]
[1737920834299,5.28283275,255.99,255.86,217.9973]
[1737920835593,9.18933275,255.99,255.86,217.9973]
[1737920837123,5.28283275,255.97,255.86,217.9973]
[1737920840919,9.18953275,255.97,255.86,217.9973]
[1737920845821,9.16274263,255.97,255.86,217.9973]
[1737920849618,5.28283275,255.92,255.86,214.089]
[1737920850127,5.28283275,255.92,255.86,79.389]
[1737920852026,9.19033275,255.92,255.86,79.389]
[1737920854232,3.9075,255.92,255.86,79.389]
[1737920856026,5.28283275,255.94,255.86,79.389]
[1737920856224,3.9073,255.93,255.86,79.389]
[1737920860626,9.18973275,255.96,255.86,83.2973]
[1737920862812,9.18973275,255.96,255.86,83.27050988]
[1737920864133,5.28283275,255.94,255.86,83.27050988]
[1737920865835,3.907,255.95,255.86,83.27050988]
[1737920866207,5.28283275,255.96,255.86,83.27050988]
[1737920866427,9.18963275,255.96,255.86,83.27050988]
[1737920866628,0.03,255.97,255.86,83.27050988]
[1737920867926,0.03,255.97,255.86,217.97050988]
[1737920870240,5.28283275,255.96,255.86,217.97050988]
[1737920871033,3.9367,255.97,255.86,217.97050988]
[1737920871215,0.03,255.97,255.86,217.97050988]
[1737920872141,3.9368,255.97,255.86,217.97050988]
[1737920872638,5.28283275,255.96,255.86,217.97050988]
[1737920873217,5.28283275,255.94,255.86,217.97050988]
[1737920874942,3.907,255.95,255.86,217.97050988]
[1737920877945,5.28283275,255.94,255.86,217.97050988]
[1737920879149,9.19003275,255.94,255.86,217.97050988]
[1737920882848,9.22003275,255.94,255.86,217.97050988]
[1737920885358,5.28283275,255.92,255.86,0.03620988]
[1737920887568,3.9076,255.91,255.86,0.03620988]
[1737920891360,0.03,255.94,255.86,0.03620988]
[1737920891559,3.9074,255.93,255.86,0.03620988]
[1737920893555,0.03,255.94,255.86,0.03620988]
[1737920893736,3.9372,255.94,255.86,0.03620988]
[1737920895674,0.03,255.94,255.86,0.03620988]
[1737920895959,0.03,255.94,255.87,1.5169]
[1737920897452,0.03,255.94,255.89,20.0]
[1737920897647,0.03,255.94,255.9,30.3023]
[1737920899863,0.03,255.94,255.9,6.3946]
[1737920900546,0.03,255.94,255.9,85.7206]
[1737920901265,0.03,255.94,255.9,79.326]
[1737920901750,5.31283275,255.94,255.9,79.326]
[1737920903571,9.22003275,255.94,255.9,79.326]
[1737920904468,3.9372,255.94,255.9,79.326]
[1737920904772,0.03,255.94,255.9,79.326]
[1737920912167,0.03,255.94,255.91,1.5101]
[1737920925994,0.03,255.94,255.91,5.4177]
[1737920927093,0.03,255.94,255.93,20.0]
[1737920927395,0.03,255.94,255.93,234.026]
[1737920928389,0.03,255.94,255.93,237.9333]
[1737920937684,0.03,255.94,255.93,261.710184]
[1737920950306,0.0001,255.97,255.96,21.0]
[1737920950492,0.03,256.0,255.97,43.776884]
[1737920950700,0.03,256.0,255.99,20.0]
[1737920952109,0.03,256.0,255.99,23.9064]
[1737920952301,0.03,256.0,255.99,262.709284]
[1737920952997,0.03,256.0,255.99,261.709284]
[1737920954111,0.03,256.0,255.99,237.9324]
[1737920970820,0.03,256.0,255.99,79.326]
[1737920971806,0.03,256.0,255.97,0.063]
[1737920987020,0.03,256.0,255.97,3.9696]
[1737920987838,0.03,256.0,255.97,83.2956]
[1737920988839,0.03,256.0,255.99,20.0]
[1737920989522,0.03,256.0,255.99,23.9064]
[1737920990527,0.03,256.0,255.99,261.709284]
[1737920993236,0.03,256.0,255.99,237.9324]
[1737921000628,0.03,256.0,255.99,214.026]
[1737921000833,0.03,256.0,255.99,79.326]
[1737921008765,0.03,256.0,255.99,79.326]
[1737921012273,0.03,256.0,255.99,83.2324]
[1737921013968,0.03,256.0,255.99,79.326]
[1737921015967,0.03,256.0,255.99,83.2324]
[1737921017144,0.03,256.0,255.99,79.326]
[1737921028844,0.03,256.0,255.99,83.2324]
[1737921034302,0.03,256.0,255.99,217.9324]
[1737921035102,0.03,256.0,255.99,214.026]
[1737921035983,0.03,256.0,255.97,0.063]
[1737921052809,0.03,256.0,255.97,3.9696]
[1737921053205,0.03,256.0,255.97,23.9696]
[1737921053911,0.03,256.0,255.98,23.776884]
[1737921054091,0.03,256.0,255.99,3.9064]
[1737921056302,0.03,256.0,255.99,27.683284]
[1737921056893,0.03,256.0,255.99,28.683284]
[1737921057695,0.03,256.11,255.99,28.683284]
[1737921057896,0.03,256.11,256.03,20.0]
[1737921058106,0.03,256.11,256.03,234.026]
[1737921059521,0.03,256.11,256.07,20.0]
[1737921060710,0.03,256.11,256.08,3.905]
[1737921064118,0.03,256.11,256.08,217.931]
[1737921064705,0.03,256.11,256.1,20.0]
[1737921064907,0.03,256.11,256.1,234.026]
[1737921066614,0.03,256.11,256.1,237.9307]
[1737921068517,0.03,256.11,256.1,234.026]
[1737921070027,0.03,256.11,256.1,99.326]
[1737921070319,0.03,256.11,256.1,79.326]
[1737921086712,0.03,256.11,256.1,83.2307]
[1737921087531,0.03,256.11,256.1,217.9307]
[1737921088622,0.03,256.11,256.1,241.707584]
[1737921089714,0.03,256.12,256.11,23.776884]
[1737921089909,0.03,256.12,256.11,237.802884]
[1737921090132,0.03,256.19,256.16,20.0]
[1737921090440,0.03,256.19,256.17,23.776884]
[1737921090632,0.03,256.19,256.17,25.327284]
[1737921091015,0.03,256.19,256.18,3.9035]
[1737921093840,0.03,256.19,256.18,217.9295]
[1737921097127,0.03,256.19,256.18,241.706384]
[1737921099139,0.03,256.19,256.18,217.9295]
[1737921099439,0.03,256.19,256.18,241.706384]
[1737921100046,0.03,256.19,256.18,217.9295]
[1737921101336,0.03,256.19,256.18,241.706384]
[1737921108553,0.03,256.19,256.18,242.706384]
[1737921108745,0.03,256.2,256.19,23.776884]
[1737921109954,0.03,256.2,256.18,217.9295]
[1737921111727,0.03,256.2,256.18,214.026]
[1737921112047,0.03,256.2,256.18,217.9294]
[1737921118055,0.03,256.2,256.19,23.776884]
[1737921120276,0.03,256.2,256.18,217.9294]
[1737921124053,0.0001,256.2,256.19,24.776884]
[1737921124250,0.03,256.23,256.19,240.419584]
[1737921124251,0.0001,256.21,256.19,240.419584]
[1737921125567,0.0001,256.21,256.2,24.776884]
[1737921125868,0.0001,256.21,256.2,28.680084]
[1737921126868,0.0001,256.21,256.2,27.680084]
[1737921127355,0.0001,256.21,256.2,3.9032]
[1737921127746,0.0001,256.21,256.2,27.680084]
[1737921129546,0.0001,256.21,256.2,241.706084]
[1737921132552,0.0001,256.21,256.2,217.9292]
[1737921132758,0.0001,256.21,256.2,214.026]
[1737921143186,0.0001,256.21,256.2,237.802884]
[1737921143982,0.0001,256.21,256.2,214.026]
[1737921147077,0.0001,256.21,256.2,241.706084]
[1737921153590,0.0001,256.21,256.2,242.706084]
[1737921157091,0.0001,256.21,256.2,243.706084]
[1737921157274,0.03,256.26,256.2,243.706084]
[1737921157275,0.03,256.26,256.24,20.0]
[1737921157481,0.03,256.26,256.25,23.776884]
[1737921159190,0.03,256.26,256.25,27.679284]
[1737921159493,0.03,256.26,256.25,23.776884]
[1737921162391,0.03,256.26,256.25,237.802884]
[1737921165774,0.03,256.26,256.25,214.026]
[1737921169411,0.03,256.26,256.25,79.326]
[1737921170295,5.31283275,256.26,256.22,134.7]
[1737921170529,5.28283275,256.24,256.22,134.7]
[1737921171715,9.21513275,256.26,256.22,134.7]
[1737921172217,5.31283275,256.26,256.22,134.7]
[1737921172421,0.03,256.26,256.22,138.6028]
[1737921174111,0.03,256.26,256.22,217.9288]
[1737921175321,0.03,256.26,256.22,217.9918]
[1737921176392,0.03,256.26,256.25,20.0]
[1737921177101,0.03,256.26,256.25,257.802884]
[1737921177503,0.03,256.26,256.25,261.705284]
[1737921180115,0.03,256.26,256.25,217.9284]
[1737921180304,0.03,256.26,256.25,214.026]
[1737921191238,0.03,256.26,256.25,217.9284]
[1737921194238,0.03,256.26,256.25,214.026]
[1737921195931,0.03,256.26,256.25,217.9284]
[1737921198342,0.03,256.26,256.25,241.705284]
[1737921211359,0.03,256.29,256.28,43.776884]
[1737921212663,0.03,256.29,256.28,47.678784]
[1737921215640,0.03,256.29,256.28,261.704784]
[1737921216742,0.03,256.29,256.28,237.9279]
[1737921221864,0.03,256.29,256.28,234.026]
[1737921222161,0.03,256.29,256.28,237.9279]
[1737921234877,0.03,256.29,256.28,214.026]
[1737921235053,5.31283275,256.29,256.28,79.326]
[1737921239370,0.03,256.29,256.28,79.326]
[1737921248780,0.03,256.29,256.28,83.2279]
[1737921251381,0.03,256.29,256.28,217.9279]
[1737921257362,0.03,256.29,256.28,241.704784]
[1737921282406,0.03,256.29,256.28,242.704784]
[1737921289416,0.03,256.29,256.28,241.704784]
[1737921294215,0.03,256.29,256.28,237.802884]
[1737921294414,0.03,256.29,256.28,214.026]
[1737921298639,0.03,256.29,256.28,214.026]
[1737921300812,0.03,256.29,256.28,79.326]
[1737921301216,0.03,256.29,256.26,0.063]
[1737921301436,5.28283275,256.27,256.26,0.063]
[1737921301638,11.62903275,256.27,256.26,0.063]
[1737921302428,15.53113275,256.27,256.26,0.063]
[1737921306015,9.18493275,256.27,256.26,0.063]
[1737921307541,5.28283275,256.27,256.26,0.063]
[1737921309548,5.31283275,256.29,256.26,0.063]
[1737921309746,0.03,256.29,256.26,0.063]
[1737921310939,0.03,256.29,256.26,79.389]
[1737921313647,0.03,256.29,256.27,10.0]
[1737921316754,0.03,256.29,256.27,89.326]
[1737921319553,0.03,256.29,256.27,224.026]
[1737921323852,0.03,256.29,256.27,227.9281]
[1737921327967,0.03,256.29,256.27,224.026]
[1737921334371,0.03,256.29,256.27,227.9281]
[1737921338367,0.03,256.29,256.27,224.026]
[1737921349962,0.03,256.29,256.28,27.678784]
[1737921355382,0.03,256.29,256.28,241.704784]
[1737921358286,0.0001,256.29,256.28,241.704784]
[1737921358579,0.03,256.37,256.35,20.0]
[1737921358772,0.03,256.37,256.35,234.026]
[1737921360182,0.03,256.37,256.36,27.677584]
[1737921361787,0.03,256.37,256.29,1.0]
[1737921361788,0.03,256.37,256.29,134.7]
[1737921361969,5.28283275,256.33,256.27,10.0]
[1737921362566,5.28283275,256.31,256.27,10.0]
[1737921362768,5.28283275,256.29,256.27,10.0]
[1737921365870,3.9018,256.3,256.27,10.0]
[1737921366691,5.28283275,256.31,256.27,10.0]
[1737921367366,6.5345,256.32,256.27,10.0]
[1737921367569,9.18393275,256.34,256.27,10.0]
[1737921367972,5.28283275,256.32,256.27,10.0]
[1737921368897,9.18413275,256.32,256.27,10.0]
[1737921370189,9.18413275,256.32,256.27,89.326]
[1737921379704,1.03,256.37,256.27,224.026]